fUSD/lending_fUSD_20240616
["ID","MTS","AMOUNT","RATE_DAILY","PERIOD"]
[329651020,1718542892521,-1000.0,0.00031112,30]
[329651021,1718542892909,-1000.0,0.00031112,30]
[329651022,1718542892963,-1000.0,0.00031112,30]
[329651023,1718542893020,-1000.0,0.00031112,30]
[329651024,1718542893060,-1000.0,0.00031112,30]
[329651025,1718542893135,-992.80736629,0.00031112,30]
[329651026,1718542893215,-895.6832139,0.00031112,120]
[329651027,1718542893265,-5380.0169,0.00031112,30]
[329651028,1718542900192,160.0,0.00031112,10]
[329651029,1718542912731,-150.5,0.0002377,15]
[329651030,1718542912820,-150.5,0.0002378,15]
[329651031,1718542912930,-150.5,0.0002379,15]
[329651032,1718542913021,-269.5,0.0002379,15]
[329651033,1718542913094,-220.0,0.0002386,15]
[329651034,1718542913169,-150.5,0.0002387,15]
[329651035,1718542913239,-1269810.53740685,0.0002388,13]
[329651036,1718542913318,-722.97571941,0.00025,14]
[329651037,1718542913389,-1800.0,0.00026,27]
[329651038,1718542913458,-1800.0,0.00027,28]
[329651039,1718542913515,-1358.0,0.00027,15]
[329651040,1718542913586,-290.70380826,0.0002739,20]
[329651041,1718542913634,-292.09637223,0.0002739,25]
[329651042,1718542913687,-500.0,0.00027397,10]
[329651043,1718542913788,-500.0,0.00027397,10]
[329651044,1718542913843,-500.0,0.00027397,10]
[329651045,1718542913887,-207.89063161,0.00027397,10]
[329651046,1718542913963,-1005.0,0.00027397,13]
[329651047,1718542914005,-1000.0,0.00027397,13]
[329651048,1718542914045,-711.0,0.00027397,13]
[329651049,1718542914095,-2000.0,0.00027397,30]
[329651050,1718542914187,-2909.62,0.00027397,10]
[329651051,1718542914242,-2424.68,0.00027397,10]
[329651052,1718542914298,-4994.55045093,0.0002744,10]
[329651053,1718542914373,-1358.0,0.000275,16]
[329651054,1718542914418,-1300.0,0.00027842,10]
[329651055,1718542914466,-346.84022224,0.000279,10]
[329651056,1718542914524,-225.71175373,0.00028,21]
[329651057,1718542914597,-1800.0,0.00028,10]
[329651058,1718542914681,-27732.0024357,0.00028,10]
[329651059,1718542914742,-1358.0,0.00028,16]
[329651060,1718542914832,-1799.48990321,0.00028,30]
[329651061,1718542914898,-1800.0,0.00028,29]
[329651062,1718542914980,-576.17,0.00028142,15]
[329651063,1718542915019,-576.17,0.00028142,15]
[329651064,1718542915075,-576.17,0.00028142,15]
[329651065,1718542915128,-576.17,0.00028142,15]
[329651066,1718542915180,-152.0,0.00028308,10]
[329651067,1718542915233,-576.17,0.00028415,15]
[329651068,1718542915274,-576.17,0.00028415,15]
[329651069,1718542915312,-1018.5226623,0.00028454,10]
[329651070,1718542915347,-1358.0,0.000285,17]
[329651071,1718542915392,-576.17,0.00028689,15]
[329651072,1718542915429,-576.17,0.00028689,15]
[329651073,1718542915481,-152.0,0.00028961,11]
[329651074,1718542915520,-576.17,0.00028962,15]
[329651075,1718542915575,-576.17,0.00028962,15]
[329651076,1718542915633,-200.0,0.00029,10]
[329651077,1718542915732,-20037.0,0.00029,10]
[329651078,1718542915769,-1358.0,0.00029,17]
[329651079,1718542915811,-323.95725158,0.00029,30]
[329651080,1718542915877,-576.17,0.00029235,15]
[329651081,1718542915916,-576.17,0.00029235,15]
[329651082,1718542915975,-1208.0,0.00029285,30]
[329651083,1718542916031,-1358.0,0.000295,18]
[329651084,1718542916071,-576.17,0.00029508,15]
[329651085,1718542916115,-576.17,0.00029508,15]
[329651086,1718542916162,-152.0,0.00029615,12]
[329651087,1718542916215,-1730.603627,0.0002978,10]
[329651088,1718542916297,-576.17,0.00029781,15]
[329651089,1718542916361,-576.17,0.00029781,15]
[329651090,1718542916452,-1000.0,0.000298,10]
[329651091,1718542916507,-1420.231533,0.000298,30]
[329651092,1718542916587,-1000.0,0.0002982,10]
[329651093,1718542916638,-1000.0,0.0002984,10]
[329651094,1718542916702,-1000.0,0.0002986,10]
[329651095,1718542916745,-1000.0,0.0002988,10]
[329651096,1718542916822,-1000.0,0.000299,10]
[329651097,1718542916862,-166.66666667,0.00029918,30]
[329651098,1718542916912,-1000.0,0.0002992,10]
[329651099,1718542916954,-1000.0,0.0002994,10]
[329651100,1718542917030,-1000.0,0.0002996,10]
[329651101,1718542917074,-1000.0,0.0002998,10]
[329651102,1718542917111,-53402.48877518,0.0003,10]
[329651103,1718542917164,-9990.0,0.0003,10]
[329651104,1718542917241,-4749.0,0.0003,15]
[329651105,1718542917280,-30000.0,0.0003,10]
[329651106,1718542917327,-30000.0,0.0003,10]
[329651107,1718542917368,-30000.0,0.0003,10]
[329651108,1718542917422,-30000.0,0.0003,10]
[329651109,1718542917475,-30000.0,0.0003,10]
[329651110,1718542917518,-10389.225759,0.0003,10]
[329651111,1718542917566,-10000.0,0.0003,15]
[329651112,1718542917620,-1446.526103,0.0003,10]
[329651113,1718542917668,-3000.0,0.0003,15]
[329651114,1718542917712,-2110.0,0.0003,15]
[329651115,1718542917766,-1358.0,0.0003,18]
[329651116,1718542917806,-1000.0,0.0003,11]
[329651117,1718542917884,-576.17,0.00030055,15]
[329651118,1718542917928,-576.17,0.00030055,15]
[329651119,1718542917981,-200.0,0.00030137,30]
[329651120,1718542918037,-152.0,0.00030268,13]
[329651121,1718542918084,-576.17,0.00030328,15]
[329651122,1718542918125,-576.17,0.00030328,15]
[329651123,1718542918170,-804.92,0.000305,15]
[329651124,1718542918220,-1358.0,0.000305,19]
[329651125,1718542918260,-1420.231533,0.000305,30]
[329651126,1718542918303,-576.17,0.00030601,15]
[329651127,1718542918345,-576.17,0.00030601,15]
[329651128,1718542918405,-576.17,0.00030874,15]
[329651129,1718542918447,-576.17,0.00030874,15]
[329651130,1718542918498,-7651.28261984,0.000309,10]
[329651131,1718542918534,-152.0,0.00030921,14]
[329651132,1718542918583,-2000.0,0.00031,21]
[329651133,1718542918661,-1358.0,0.00031,19]
[329651134,1718542918718,-155.11956188,0.00031,30]
[329651135,1718542918815,-150.0,0.00031497,120]
[329651136,1718542918900,-4899.0140027,0.000315,14]
[329651137,1718542919006,-1358.0,0.000315,20]
[329651138,1718542919087,-152.0,0.00031574,15]
[329651139,1718542919160,-618.85682949,0.000317,30]
[329651140,1718542919252,-163.64504189,0.00031708,10]
[329651141,1718542919308,-656.47945453,0.00032,10]
[329651142,1718542919364,-1358.0,0.00032,20]
[329651143,1718542919417,-1402.73046881,0.00032,60]
[329651144,1718542919504,-1799.99999906,0.00032,33]
[329651145,1718542919554,-152.0,0.00032227,16]
[329651146,1718542919623,-1000.0,0.000323,15]
[329651147,1718542919725,-1732.80729586,0.0003234,10]
[329651148,1718542919899,-258.34366147,0.00032393,40]
[329651149,1718542920008,-1358.0,0.000325,21]
[329651150,1718542920078,-500.0,0.00032602,10]
[329651151,1718542920129,-500.0,0.00032602,10]
[329651152,1718542920205,-700.0,0.00032602,10]
[329651153,1718542920246,-900.0,0.00032602,10]
[329651154,1718542920474,-989.56401004,0.00032673,14]
[329651155,1718542920533,-344.71772294,0.00032876,30]
[329651156,1718542920599,-200.0,0.00032877,30]
[329651157,1718542920668,-489.0,0.00032877,13]
[329651158,1718542920724,-350.0,0.00032877,12]
[329651159,1718542920776,-350.0,0.00032877,12]
[329651160,1718542920812,-350.0,0.00032877,12]
[329651161,1718542920887,-350.0,0.00032877,12]
[329651162,1718542920941,-152.0,0.0003288,17]
[329651163,1718542920990,-5652.46892364,0.000329,10]
[329651164,1718542921035,-1367.97156267,0.000329,30]
[329651165,1718542921073,-880.1650065,0.000329,30]
[329651166,1718542921116,-400.0,0.00033,15]
[329651167,1718542921185,-17000.0,0.00033,15]
[329651168,1718542921245,-1358.0,0.00033,22]
[329651169,1718542921290,-678.655162,0.00033,14]
[329651170,1718542921341,-700.0,0.0003315,10]
[329651171,1718542921380,-900.0,0.0003315,10]
[329651172,1718542921447,-165.199339,0.000333,23]
[329651173,1718542921506,-1358.0,0.000335,22]
[329651174,1718542921547,-355.057883,0.000335,30]
[329651175,1718542921603,-700.0,0.00033698,10]
[329651176,1718542921646,-900.0,0.00033698,10]
[329651177,1718542921697,-500.0,0.00033698,10]
[329651178,1718542921774,-500.0,0.00033698,10]
[329651179,1718542921867,-10000.0,0.000338,12]
[329651180,1718542921924,-890.0,0.00034,15]
[329651181,1718542921976,-1214.97239275,0.00034,12]
[329651182,1718542922099,-10000.0,0.00034,12]
[329651183,1718542922165,-10000.0,0.00034,12]
[329651184,1718542922206,-3410.00518566,0.00034,12]
[329651185,1718542922285,-296.1272293,0.00034,12]
[329651186,1718542922328,-170.8198634,0.00034,12]
[329651187,1718542922406,-10000.0,0.00034,12]
[329651188,1718542922447,-10000.0,0.00034,12]
[329651189,1718542922501,-10000.0,0.00034,12]
[329651190,1718542922546,-150.54563929,0.00034,12]
[329651191,1718542922624,-10000.0,0.00034,12]
[329651192,1718542922678,-1358.0,0.00034,23]
[329651193,1718542922734,-10000.0,0.000341,12]
[329651194,1718542922786,-700.0,0.00034246,10]
[329651195,1718542922885,-900.0,0.00034246,10]
[329651196,1718542922959,-10000.0,0.000344,12]
[329651197,1718542923008,-500.0,0.00034479,20]
[329651198,1718542923044,-10000.0,0.000345,12]
[329651199,1718542923077,-1358.0,0.000345,23]
[329651200,1718542923111,-150.0,0.00034548,10]
[329651201,1718542923173,-700.0,0.00034794,10]
[329651202,1718542923256,-900.0,0.00034794,10]
[329651203,1718542923351,-500.0,0.00034794,10]
[329651204,1718542923485,-500.0,0.00034794,10]
[329651205,1718542923592,-10000.0,0.000348,12]
[329651206,1718542923659,-1170852.39852938,0.000348,10]
[329651207,1718542929840,-2020.57,0.00027397,10]
[329651208,1718542929960,-455.05295009,0.00031112,14]
[329651209,1718542930050,-229544.60750863,0.000348,10]
[329651210,1718542930115,-1243.534543,0.0003494,14]
[329651211,1718542930177,-1000.0,0.0003496,14]
[329651212,1718542930242,-1000.0,0.0003498,14]
[329651213,1718542930291,-169.95651642,0.00034999,120]
[329651214,1718542930348,-10000.0,0.00035,12]
[329651215,1718542930417,-1004.0,0.00035,10]
[329651216,1718542930488,-3480.69,0.00035,14]
[329651217,1718542930532,-1358.0,0.00035,24]
[329651218,1718542930636,-3413.96965694,0.00035,30]
[329651219,1718542930691,-200.0,0.00035,120]
[329651220,1718542930769,-1000.0,0.00035,14]
[329651221,1718542930844,-296.73337661,0.00035,30]
[329651222,1718542930900,-895.6832139,0.00035,120]
[329651223,1718542930943,-10000.0,0.00035,21]
[329651224,1718542930994,-15000.71335,0.00035,12]
[329651225,1718542931072,-2000.0,0.00035,20]
[329651226,1718542931137,-450.0,0.0003502,30]
[329651227,1718542931215,-10000.0,0.000352,12]
[329651228,1718542931267,-10000.0,0.000352,12]
[329651229,1718542931349,-900.0,0.00035342,10]
[329651230,1718542931412,-10000.0,0.000354,12]
[329651231,1718542931462,-148521.2916171,0.0003549,10]
[329651232,1718542931519,-10409.57162997,0.0003549,10]
[329651233,1718542931572,-1358.0,0.000355,24]
[329651234,1718542931640,-10000.0,0.000356,12]
[329651235,1718542931693,-45000.0,0.000356,30]
[329651236,1718542931746,-200.0,0.00035616,30]
[329651237,1718542931797,-700.0,0.0003589,10]
[329651238,1718542931882,-500.0,0.0003589,10]
[329651239,1718542931931,-500.0,0.0003589,10]
[329651240,1718542932004,-10000.0,0.000359,12]
[329651241,1718542932057,-10000.0,0.00036,12]
[329651242,1718542932121,-10000.0,0.00036,12]
[329651243,1718542932185,-10000.0,0.00036,12]
[329651244,1718542932259,-1358.0,0.00036,25]
[329651245,1718542932307,-450.0,0.0003626,30]
[329651246,1718542932404,-150.0,0.00036302,120]
[329651247,1718542932461,-10000.0,0.000364,12]
[329651248,1718542932545,-900.0,0.00036438,10]
[329651249,1718542932590,-1800.0,0.000365,15]
[329651250,1718542932669,-1358.754104,0.000365,25]
[329651251,1718542932752,-10000.0,0.000366,12]
[329651252,1718542932837,-10000.0,0.000367,12]
[329651253,1718542932888,-10000.0,0.000368,12]
[329651254,1718542932947,-151.0,0.000368,32]
[329651255,1718542933032,-700.0,0.00036986,10]
[329651256,1718542933102,-500.0,0.00036986,10]
[329651257,1718542933200,-211.07115218,0.00036986,10]
[329651258,1718542933260,-50000.0,0.00037,27]
[329651259,1718542933297,-1000.0,0.00037,10]
[329651260,1718542933349,-10000.0,0.00037,12]
[329651261,1718542933392,-10000.0,0.000372,12]
[329651262,1718542933433,-10000.0,0.000373,12]
[329651263,1718542933472,-450.0,0.000375,30]
[329651264,1718542933518,-900.0,0.00037534,10]
[329651265,1718542933566,-10000.0,0.000376,12]
[329651266,1718542933634,-50000.0,0.00038,28]
[329651267,1718542933690,-1500.0,0.00038,10]
[329651268,1718542933766,-660.32386462,0.00038,120]
[329651269,1718542933850,-895.6832139,0.00038,120]
[329651270,1718542933893,-536.24704637,0.0003801,120]
[329651271,1718542933943,-700.0,0.00038082,10]
[329651272,1718542934008,-305.61119949,0.00038082,10]
[329651273,1718542934053,-207.60559337,0.00038356,30]
[329651274,1718542934449,839.53,0.00032876,120]
[329651275,1718542934616,839.53,0.00032876,120]
[329651276,1718542934809,839.53,0.00032876,120]
[329651277,1718542934894,839.53,0.00032876,120]
[329651278,1718542935008,296.279952,0.00031,30]
[329651279,1718542935089,839.53,0.00032876,120]
[329651280,1718542935169,839.53,0.00032876,120]
[329651281,1718542935240,618.85682949,0.000317,30]
[329651282,1718542935293,839.53,0.00032876,120]
[329651283,1718542935349,839.53,0.00032876,120]
[329651284,1718542935445,839.53,0.00032876,120]
[329651285,1718542935515,839.53,0.00032876,120]
[329651286,1718542935582,839.53,0.00032876,120]
[329651287,1718542935661,839.53,0.00032876,120]
[329651288,1718542935738,839.53,0.00032876,120]
[329651289,1718542935861,839.53,0.00032876,120]
[329651290,1718542935921,839.53,0.00032876,120]
[329651291,1718542936013,839.53,0.00032876,120]
[329651292,1718542936307,839.53,0.00032876,120]
[329651293,1718542936359,414.21711754,0.0003,15]
[329651294,1718542936458,323.95725158,0.00029,30]
[329651295,1718542936513,839.53,0.00032876,120]
[329651296,1718542936758,839.53,0.00032876,120]
[329651297,1718542937111,839.53,0.00032876,120]
[329651298,1718542937357,839.53,0.00032876,120]
[329651299,1718542937504,839.53,0.00032876,120]
[329651300,1718542937736,839.53,0.00032876,120]
[329651301,1718542937809,1683.81,0.00027397,10]
[329651302,1718542937878,839.54491912,0.00032876,120]
[329651303,1718542939868,1402.73046881,0.00032,60]
[329651304,1718542943055,455.05295009,0.00031112,14]
[329651305,1718542946799,579.75056629,0.00025,14]
[329651309,1718543092805,150.0,0.00010649,2]
[329651310,1718543092860,117.46568462,0.00010649,2]
[329651311,1718543129762,150.0,0.00010647,2]
[329651312,1718543129812,150.0,0.00010647,2]
[329651313,1718543129862,150.0,0.00010647,2]
[329651314,1718543129899,150.0,0.00010647,2]
[329651315,1718543129951,150.0,0.00010647,2]
[329651316,1718543129999,150.0,0.00010647,2]
[329651317,1718543130039,150.0,0.00010647,2]
[329651318,1718543130103,150.0,0.00010647,2]
[329651319,1718543130132,150.0,0.00010647,2]
[329651320,1718543130161,150.0,0.00010647,2]
[329651321,1718543130202,171.52455527,0.00010647,2]
[329651322,1718543130239,150.0,0.00010647,2]
[329651323,1718543130279,5841.63507708,0.00010647,2]
[329651324,1718543160519,-990.53693248,0.00010691,2]
[329651325,1718543161357,-1764.29265017,0.00010691,2]
[329651326,1718543162352,-790.91994518,0.00010691,2]
[329651327,1718543163202,-521.351022,0.00010691,2]
[329651328,1718543163820,-924.97105517,0.00010691,2]
[329651329,1718543173221,150.0,0.00010649,2]
[329651330,1718543173272,150.0,0.00010649,2]
[329651331,1718543173335,150.0,0.00010649,2]
[329651332,1718543173381,150.0,0.00010649,2]
[329651333,1718543173419,150.0,0.00010649,2]
[329651334,1718543173460,150.0,0.00010649,2]
[329651335,1718543173495,150.0,0.00010649,2]
[329651336,1718543173786,150.0,0.00010649,2]
[329651337,1718543173830,150.0,0.00010649,2]
[329651338,1718543173909,19042.76513698,0.00010649,2]
[329651339,1718543183399,281.3932,0.00010156,2]
[329651340,1718543183569,150.0,8.018e-05,2]
[329651341,1718543183631,750.0,8.018e-05,2]
[329651342,1718543185859,-155.0,0.00010691,2]
[329651343,1718543200284,150.0,0.00010156,2]
[329651344,1718543200320,150.0,0.00010156,2]
[329651345,1718543200363,150.0,0.00010156,2]
[329651346,1718543200412,150.0,0.00010156,2]
[329651347,1718543238146,-521.351022,0.00010688,2]
[329651348,1718543238684,150.0,0.00010642,2]
[329651349,1718543238712,144.87759736,0.00010642,2]
[329651350,1718543350471,-525.92177641,0.00010736,2]
[329651351,1718543350499,-188.23605895,0.00010737,2]
[329651352,1718543350543,-532.05845602,0.00010737,2]
[329651353,1718543350607,-339.07696494,0.00010738,2]
[329651354,1718543350642,-1000.0,0.00010738,2]
[329651355,1718543350696,-511.0,0.00010741,2]
[329651356,1718543350772,-1797.58231532,0.00010748,2]
[329651357,1718543350827,-300.0,0.00010749,2]
[329651358,1718543350900,-300.0,0.00010749,2]
[329651359,1718543350932,-150.0,0.00010749,2]
[329651360,1718543350996,-9901.20677781,0.0001075,2]
[329651366,1718543372545,-10000.0,0.0001075,2]
[329651367,1718543386452,150.0,0.00010641,2]
[329651368,1718543386487,150.0,0.00010641,2]
[329651369,1718543386549,150.0,0.00010641,2]
[329651370,1718543386601,150.0,0.00010641,2]
[329651371,1718543386660,150.0,0.00010641,2]
[329651372,1718543386727,150.0,0.00010641,2]
[329651373,1718543386765,150.0,0.00010641,2]
[329651374,1718543386885,150.0,0.00010641,2]
[329651375,1718543386949,2470.9116,0.00010641,2]
[329651376,1718543431531,-1093.89791342,0.00010749,2]
[329651377,1718543431570,-6507.9540272,0.0001075,2]
[329651378,1718543431602,-158.0,0.0001075,2]
[329651379,1718543431640,-300.0,0.0001075,2]
[329651380,1718543431688,-900.00000001,0.0001075,2]
[329651381,1718543431716,-300.0,0.0001075,2]
[329651382,1718543431772,-6856.17388451,0.00010751,2]
[329651394,1718543433287,-210.0,0.00011824,2]
[329651395,1718543433298,-1114.76351156,0.00012983,2]
[329651396,1718543433477,-521.36640746,0.00012983,2]
[329651397,1718543433494,-582.92504737,0.00012983,2]
[329651398,1718543433723,-2259.47975856,0.00012983,2]
[329651399,1718543433742,-800.0,0.00012983,2]
[329651400,1718543433760,-14306.2213802,0.00012983,2]
[329651401,1718543433771,-224.11,0.00012984,2]
[329651402,1718543433783,-293.0,0.00013006,2]
[329651403,1718543433800,-70598.43712372,0.00013252,2]
[329651404,1718543433811,-16660.89396308,0.00013647,2]
[329651405,1718543433829,-571.61940899,0.00013647,2]
[329651406,1718543433860,-909.67996557,0.00013647,2]
[329651407,1718543433923,-5757.80666236,0.00013647,2]
[329651408,1718543433952,-815.46,0.0001389,3]
[329651409,1718543433980,-469.28798182,0.000139,2]
[329651410,1718543434220,-7866.05041818,0.000139,2]
[329651411,1718543434232,-1043.57163077,0.00014,2]
[329651412,1718543434249,-250.0,0.00014014,2]
[329651413,1718543434277,-167.99,0.00014085,2]
[329651414,1718543434317,-411.0,0.00014307,2]
[329651415,1718543434331,-1105.58,0.00015326,2]
[329651416,1718543434351,-315.0,0.00015738,2]
[329651417,1718543434369,-3373.0,0.00016,2]
[329651418,1718543434382,-39214.81,0.00016,2]
[329651419,1718543434393,-685.74,0.00016101,2]
[329651420,1718543434406,-2488.75759572,0.00017,2]
[329651421,1718543434432,-1197.0,0.0001734,2]
[329651422,1718543434456,-5791.0,0.0001734,2]
[329651423,1718543434488,-290.0,0.0001734,2]
[329651424,1718543434504,-5161.0,0.0001734,2]
[329651425,1718543434531,-10351.85503382,0.0001734,2]
[329651426,1718543434545,-923.72099075,0.0001734,2]
[329651427,1718543434559,-10938.83097543,0.0001734,2]
[329651428,1718543434575,-383.933,0.00017665,2]
[329651429,1718543434587,-1275.012,0.00017665,2]
[329651430,1718543434600,-1830.0,0.00017665,2]
[329651431,1718543434616,-515.15,0.00017665,2]
[329651432,1718543434628,-3196.0,0.00017665,2]
[329651433,1718543434640,-547.0,0.00017665,2]
[329651434,1718543434670,-155.0,0.00018,2]
[329651435,1718543434685,-557.56,0.00018063,2]
[329651436,1718543434702,-685.74,0.00018365,2]
[329651437,1718543434743,-500.0,0.000185,2]
[329651438,1718543434773,-150.88,0.00018569,2]
[329651439,1718543434795,-1000.0,0.00018655,2]
[329651440,1718543434806,-7259.95185649,0.00019451,2]
[329651441,1718543434942,-628.12349577,0.00019451,2]
[329651442,1718543434958,-3822.12291574,0.00019451,2]
[329651443,1718543434971,-453.83009299,0.00019748,2]
[329651444,1718543434994,-446.34692615,0.0002,2]
[329651445,1718543435008,-157.09089731,0.00020215,2]
[329651446,1718543435027,-685.74,0.00020629,2]
[329651448,1718543435049,-557.56,0.00020803,2]
[329651450,1718543435080,-1000.0,0.00020986,2]
[329651452,1718543435091,-1250.0,0.00021,2]
[329651454,1718543435106,-5000.0,0.00021,2]
[329651455,1718543435121,-300.0,0.00021,2]
[329651456,1718543435135,-155.0,0.00021816,2]
[329651457,1718543435146,-1169.554,0.00021817,2]
[329651458,1718543435171,-363.17338025,0.00021915,5]
[329651459,1718543435184,-522.92042804,0.00021917,2]
[329651460,1718543435195,-500.0,0.00021917,2]
[329651461,1718543435212,-500.0,0.00021917,2]
[329651462,1718543435224,-500.0,0.00021917,2]
[329651463,1718543435239,-500.0,0.00021917,2]
[329651464,1718543435260,-500.0,0.00021917,2]
[329651465,1718543435283,-500.0,0.00021917,2]
[329651466,1718543435294,-282.95397737,0.00021917,2]
[329651467,1718543435309,-500.0,0.00021917,2]
[329651468,1718543435327,-500.0,0.00021917,2]
[329651469,1718543435350,-179.85778489,0.00021917,2]
[329651470,1718543435370,-500.0,0.00021917,2]
[329651471,1718543435382,-413.9862429,0.00021917,2]
[329651472,1718543435399,-500.0,0.00021917,2]
[329651473,1718543435427,-500.0,0.00021917,2]
[329651474,1718543435454,-978.08,0.00021917,2]
[329651475,1718543435486,-500.0,0.00021917,2]
[329651476,1718543435521,-3953.08,0.00021917,2]
[329651477,1718543435532,-1627.71,0.00021917,2]
[329651478,1718543435547,-1076.22,0.00021917,2]
[329651479,1718543435558,-500.0,0.00021917,2]
[329651480,1718543435573,-500.0,0.00021917,2]
[329651481,1718543435588,-2749.41,0.00021917,2]
[329651482,1718543435631,-500.0,0.00021917,2]
[329651483,1718543435658,-791.62,0.00021917,2]
[329651484,1718543435681,-500.0,0.00021917,2]
[329651485,1718543435697,-2698.23,0.00021917,2]
[329651486,1718543435716,-900.4,0.00021917,2]
[329651487,1718543435731,-500.0,0.00021917,2]
[329651488,1718543435748,-1139.85,0.00021917,2]
[329651489,1718543435758,-500.0,0.00021917,2]
[329651490,1718543435772,-1672.32,0.00021917,2]
[329651491,1718543435783,-569.27,0.00021917,2]
[329651492,1718543435794,-835.69,0.00021917,2]
[329651493,1718543435823,-1200.74,0.00021917,2]
[329651494,1718543435838,-500.0,0.00021917,2]
[329651495,1718543435877,-666.2,0.00021917,2]
[329651496,1718543435905,-677.79,0.00021917,2]
[329651497,1718543435919,-500.0,0.00021917,2]
[329651498,1718543435930,-737.27,0.00021917,2]
[329651499,1718543435952,-1661.59,0.00021917,2]
[329651500,1718543436006,-500.0,0.00021917,2]
[329651501,1718543436025,-1597.3,0.00021917,2]
[329651502,1718543436038,-1539.48,0.00021917,2]
[329651503,1718543436053,-1018.91,0.00021917,2]
[329651504,1718543436082,-1576.0,0.00021917,2]
[329651505,1718543436093,-500.0,0.00021917,2]
[329651506,1718543436110,-500.0,0.00021917,2]
[329651507,1718543436121,-1000.71,0.00021917,2]
[329651508,1718543436133,-439.79,0.00021917,2]
[329651509,1718543436145,-1912.84,0.00021917,2]
[329651510,1718543436158,-500.0,0.00021917,2]
[329651511,1718543436171,-965.1,0.00021917,2]
[329651512,1718543436184,-811.0,0.00021917,2]
[329651513,1718543436202,-1707.1,0.00021917,2]
[329651514,1718543436216,-500.0,0.00021917,2]
[329651515,1718543436230,-500.0,0.00021917,2]
[329651516,1718543436242,-500.0,0.00021917,2]
[329651517,1718543436258,-607.65,0.00021917,2]
[329651518,1718543436275,-500.0,0.00021917,2]
[329651519,1718543436291,-500.0,0.00021917,2]
[329651520,1718543436303,-776.41,0.00021917,2]
[329651521,1718543436317,-757.14,0.00021917,2]
[329651522,1718543436337,-6644.03,0.00021917,2]
[329651523,1718543436366,-530.75,0.00021917,2]
[329651524,1718543436382,-500.0,0.00021917,2]
[329651525,1718543436401,-500.0,0.00021917,2]
[329651526,1718543436427,-500.0,0.00021917,2]
[329651527,1718543436439,-500.0,0.00021917,2]
[329651528,1718543436450,-500.0,0.00021917,2]
[329651529,1718543436464,-500.0,0.00021917,2]
[329651530,1718543436475,-154.53,0.00021918,2]
[329651531,1718543436485,-373.46,0.00021918,2]
[329651532,1718543436497,-250.0,0.00021918,2]
[329651533,1718543436510,-197.12003853,0.00021988,2]
[329651534,1718543436523,-2245.19223316,0.00022,2]
[329651535,1718543436535,-500.0,0.00022088,3]
[329651536,1718543436563,-500.0,0.00022088,3]
[329651537,1718543436578,-19544.63,0.00022088,3]
[329651538,1718543436592,-594.24,0.00022088,3]
[329651539,1718543436604,-500.0,0.00022088,3]
[329651540,1718543436622,-1157.63,0.00022088,3]
[329651541,1718543436636,-500.0,0.00022088,3]
[329651542,1718543436651,-3131.91,0.00022088,3]